Workbook

Sheet Ngân sách 18 Giai đoạn
B1: ngân sách công ty
G2: NGÀY BẮT ĐẦU | H2: 2011-01-01 | I2: ĐỘ DÀI GIAI ĐOẠN (TÍNH THEO NGÀY) | L2: 14 | M2: NGÀY KẾT THÚC | N2: =TEXT(T4,"mm/dd/yyyy") -> 08/26/2012
C4: =UPPER(TEXT(H2,"dd-mm")) -> 01-01 | D4: =UPPER(TEXT(C4+DayInterval,"dd-mm")) -> 15-01 | E4: 29-01 | F4: 12-02 | G4: 26-02 | H4: 11-03 | I4: 25-03 | J4: 08-04 | K4: 22-04 | L4: 06-05 | M4: 20-05 | N4: 03-06 | O4: 17-06 | P4: 01-07 | Q4: 15-07 | R4: 29-07 | S4: 12-08 | T4: 26-08
C5: =UPPER(TEXT(C4,"dd-mmm")) -> 01-THG1 | D5: =UPPER(TEXT(D4,"dd-mmm")) -> 15-THG1 | E5: 29-THG1 | F5: 12-THG2 | G5: 26-THG2 | H5: 11-THG3 | I5: 25-THG3 | J5: 08-THG4 | K5: 22-THG4 | L5: 06-THG5 | M5: 20-THG5 | N5: 03-THG6 | O5: 17-THG6 | P5: 01-THG7 | Q5: 15-THG7 | R5: 29-THG7 | S5: 12-THG8 | T5: 26-THG8 | U5: TỔNG CỘNG | V5: XU HƯỚNG
B6: THU NHẬP RÒNG | C6: =IncomeTable[[#Totals],[Week 1]]-ExpensesTable[[#Totals],[Week 1]] -> -5,611,550 ₫ | D6: =IncomeTable[[#Totals],[Week 2]]-ExpensesTable[[#Totals],[Week 2]] -> -5,848,070 ₫ | E6: =IncomeTable[[#Totals],[Week 3]]-ExpensesTable[[#Totals],[Week 3]] -> -6,385,246 ₫ | F6: =IncomeTable[[#Totals],[Week 4]]-ExpensesTable[[#Totals],[Week 4]] -> -5,937,450 ₫ | G6: =IncomeTable[[#Totals],[Week 5]]-ExpensesTable[[#Totals],[Week 5]] -> -6,368,523 ₫ | H6: =IncomeTable[[#Totals],[Week 6]]-ExpensesTable[[#Totals],[Week 6]] -> -6,736,953 ₫ | I6: =IncomeTable[[#Totals],[Week 7]]-ExpensesTable[[#Totals],[Week 7]] -> -6,622,100 ₫ | J6: =IncomeTable[[#Totals],[Week 8]]-ExpensesTable[[#Totals],[Week 8]] -> 0 | K6: =IncomeTable[[#Totals],[Week 9]]-ExpensesTable[[#Totals],[Week 9]] -> 0 | L6: =IncomeTable[[#Totals],[Week 10]]-ExpensesTable[[#Totals],[Week 10]] -> 0 | M6: =IncomeTable[[#Totals],[Week 11]]-ExpensesTable[[#Totals],[Week 11]] -> 0 | N6: =IncomeTable[[#Totals],[Week 12]]-ExpensesTable[[#Totals],[Week 12]] -> 0 | O6: =IncomeTable[[#Totals],[Week 13]]-ExpensesTable[[#Totals],[Week 13]] -> 0 | P6: =IncomeTable[[#Totals],[Week 14]]-ExpensesTable[[#Totals],[Week 14]] -> 0 | Q6: =IncomeTable[[#Totals],[Week 15]]-ExpensesTable[[#Totals],[Week 15]] -> 0 | R6: =IncomeTable[[#Totals],[Week 16]]-ExpensesTable[[#Totals],[Week 16]] -> 0 | S6: =IncomeTable[[#Totals],[Week 17]]-ExpensesTable[[#Totals],[Week 17]] -> 0 | T6: =IncomeTable[[#Totals],[Week 18]]-ExpensesTable[[#Totals],[Week 18]] -> 0 | U6: =IncomeTable[[#Totals],[Total]]-ExpensesTable[[#Totals],[Total]] -> -43,509,892 ₫
A8: thu nhập
B9: KHOẢN MỤC THU NHẬP 1 | C9: 3,000 ₫ | D9: 3,500 ₫ | E9: 2,978 ₫ | F9: 3,384 ₫ | G9: 2,858 ₫ | H9: 2,809 ₫ | I9: 3,220 ₫ | U9: =SUM(IncomeTable[[#This Row],[Week 1]:[Week 18]]) -> 21,749 ₫
B10: KHOẢN MỤC THU NHẬP 2 | C10: 1,150 | D10: 1,200 | E10: 1,144 | F10: 1,400 | G10: 1,358 | H10: 1,154 | I10: 1,245 | U10: =SUM(IncomeTable[[#This Row],[Week 1]:[Week 18]]) -> 8,651
B11: KHOẢN MỤC THU NHẬP 3 | C11: 300 | D11: 350 | E11: 392 | F11: 326 | G11: 381 | H11: 364 | I11: 315 | U11: =SUM(IncomeTable[[#This Row],[Week 1]:[Week 18]]) -> 2,428
B12: TỔNG THU NHẬP | C12: =SUBTOTAL(109,IncomeTable[Week 1]) -> 4,450 ₫ | D12: =SUBTOTAL(109,IncomeTable[Week 2]) -> 5,050 ₫ | E12: =SUBTOTAL(109,IncomeTable[Week 3]) -> 4,514 ₫ | F12: =SUBTOTAL(109,IncomeTable[Week 4]) -> 5,110 ₫ | G12: =SUBTOTAL(109,IncomeTable[Week 5]) -> 4,597 ₫ | H12: =SUBTOTAL(109,IncomeTable[Week 6]) -> 4,327 ₫ | I12: =SUBTOTAL(109,IncomeTable[Week 7]) -> 4,780 ₫ | J12: =SUBTOTAL(109,IncomeTable[Week 8]) -> 0 | K12: =SUBTOTAL(109,IncomeTable[Week 9]) -> 0 | L12: =SUBTOTAL(109,IncomeTable[Week 10]) -> 0 | M12: =SUBTOTAL(109,IncomeTable[Week 11]) -> 0 | N12: =SUBTOTAL(109,IncomeTable[Week 12]) -> 0 | O12: =SUBTOTAL(109,IncomeTable[Week 13]) -> 0 | P12: =SUBTOTAL(109,IncomeTable[Week 14]) -> 0 | Q12: =SUBTOTAL(109,IncomeTable[Week 15]) -> 0 | R12: =SUBTOTAL(109,IncomeTable[Week 16]) -> 0 | S12: =SUBTOTAL(109,IncomeTable[Week 17]) -> 0 | T12: =SUBTOTAL(109,IncomeTable[Week 18]) -> 0 | U12: =SUBTOTAL(109,IncomeTable[Total]) -> 32,828 ₫
A14: chi phí
B15: LƯƠNG | C15: 3,120,000 ₫ | D15: 3,280,160 ₫ | E15: 3,791,840 ₫ | F15: 3,180,320 ₫ | G15: 3,658,720 ₫ | H15: 4,049,760 ₫ | I15: 3,900,000 ₫ | U15: =SUM(ExpensesTable[[#This Row],[Week 1]:[Week 18]]) -> 24,980,800 ₫
B16: THUÊ NHÀ | C16: 2,080,000 | D16: 2,080,000 | E16: 2,080,000 | F16: 2,080,000 | G16: 2,080,000 | H16: 2,080,000 | I16: 2,080,000 | U16: =SUM(ExpensesTable[[#This Row],[Week 1]:[Week 18]]) -> 14,560,000
B17: TIỀN ĐIỆN | C17: 83,200 | D17: 89,440 | E17: 83,200 | F17: 87,360 | G17: 93,600 | H17: 83,200 | I17: 87,360 | U17: =SUM(ExpensesTable[[#This Row],[Week 1]:[Week 18]]) -> 607,360
B18: TIỀN ĐIỆN THOẠI | C18: 24,960 | D18: 22,880 | E18: 27,040 | F18: 29,120 | G18: 22,880 | H18: 31,200 | I18: 31,200 | U18: =SUM(ExpensesTable[[#This Row],[Week 1]:[Week 18]]) -> 189,280
B19: INTERNET | C19: 31,200 | D19: 31,200 | E19: 31,200 | F19: 31,200 | G19: 31,200 | H19: 31,200 | I19: 31,200 | U19: =SUM(ExpensesTable[[#This Row],[Week 1]:[Week 18]]) -> 218,400
B20: TIỀN NƯỚC | C20: 22,880 | D20: 20,800 | E20: 27,040 | F20: 20,800 | G20: 27,040 | H20: 20,800 | I20: 24,960 | U20: =SUM(ExpensesTable[[#This Row],[Week 1]:[Week 18]]) -> 164,320
B21: TIỀN GAS | C21: 47,840 | D21: 56,160 | E21: 54,080 | F21: 56,160 | G21: 45,760 | H21: 60,320 | I21: 43,680 | U21: =SUM(ExpensesTable[[#This Row],[Week 1]:[Week 18]]) -> 364,000
B22: TIỀN ĐỔ RÁC | C22: 8,320 | D22: 8,320 | E22: 8,320 | F22: 8,320 | G22: 8,320 | H22: 8,320 | I22: 8,320 | U22: =SUM(ExpensesTable[[#This Row],[Week 1]:[Week 18]]) -> 58,240
B23: TRUYỀN HÌNH CÁP | C23: 20,800 | D23: 20,800 | E23: 20,800 | F23: 20,800 | G23: 20,800 | H23: 20,800 | I23: 20,800 | U23: =SUM(ExpensesTable[[#This Row],[Week 1]:[Week 18]]) -> 145,600
B24: VĂN PHÒNG PHẨM | C24: 52,000 | D24: 118,560 | E24: 141,440 | F24: 303,680 | G24: 260,000 | H24: 230,880 | I24: 274,560 | U24: =SUM(ExpensesTable[[#This Row],[Week 1]:[Week 18]]) -> 1,381,120
B25: BẢO HIỂM | C25: 124,800 | D25: 124,800 | E25: 124,800 | F25: 124,800 | G25: 124,800 | H25: 124,800 | I25: 124,800 | U25: =SUM(ExpensesTable[[#This Row],[Week 1]:[Week 18]]) -> 873,600
B26: TỔNG CHI PHÍ | C26: =SUBTOTAL(109,ExpensesTable[Week 1]) -> 5,616,000 ₫ | D26: =SUBTOTAL(109,ExpensesTable[Week 2]) -> 5,853,120 ₫ | E26: =SUBTOTAL(109,ExpensesTable[Week 3]) -> 6,389,760 ₫ | F26: =SUBTOTAL(109,ExpensesTable[Week 4]) -> 5,942,560 ₫ | G26: =SUBTOTAL(109,ExpensesTable[Week 5]) -> 6,373,120 ₫ | H26: =SUBTOTAL(109,ExpensesTable[Week 6]) -> 6,741,280 ₫ | I26: =SUBTOTAL(109,ExpensesTable[Week 7]) -> 6,626,880 ₫ | J26: =SUBTOTAL(109,ExpensesTable[Week 8]) -> 0 | K26: =SUBTOTAL(109,ExpensesTable[Week 9]) -> 0 | L26: =SUBTOTAL(109,ExpensesTable[Week 10]) -> 0 | M26: =SUBTOTAL(109,ExpensesTable[Week 11]) -> 0 | N26: =SUBTOTAL(109,ExpensesTable[Week 12]) -> 0 | O26: =SUBTOTAL(109,ExpensesTable[Week 13]) -> 0 | P26: =SUBTOTAL(109,ExpensesTable[Week 14]) -> 0 | Q26: =SUBTOTAL(109,ExpensesTable[Week 15]) -> 0 | R26: =SUBTOTAL(109,ExpensesTable[Week 16]) -> 0 | S26: =SUBTOTAL(109,ExpensesTable[Week 17]) -> 0 | T26: =SUBTOTAL(109,ExpensesTable[Week 18]) -> 0 | U26: =SUBTOTAL(109,ExpensesTable[Total]) -> 43,542,720 ₫
